[Event "*** Titled Tuesday Blitz"]
[Site "Chess.com"]
[Date "2019.01.01"]
[Round "1"]
[White "xpto15"]
[Black "1e41-0"]
[Result "1-0"]
[WhiteElo "2167"]
[BlackElo "2532"]
[TimeControl "180+2"]
[EndTime "13:11:40 PST"]
[Termination "xpto15 won by resignation"]

1. e4 {[%clk 0:03:00.5]} 1... e6 {[%clk 0:03:01]} 2. d4 {[%clk 0:03:01]} 2... d5
{[%clk 0:03:02.5]} 3. Nc3 {[%clk 0:03:02.4]} 3... Bb4 {[%clk 0:03:02.4]} 4. e5
{[%clk 0:03:03.4]} 4... c5 {[%clk 0:03:02.1]} 5. a3 {[%clk 0:03:03]} 5... Bxc3+
{[%clk 0:03:03.2]} 6. bxc3 {[%clk 0:03:04.9]} 6... Qa5 {[%clk 0:03:03.9]} 7. Bd2
{[%clk 0:02:53.5]} 7... Qa4 {[%clk 0:03:04.6]} 8. Qg4 {[%clk 0:02:49.8]} 8...
Kf8 {[%clk 0:03:04.5]} 9. Qd1 {[%clk 0:02:49.2]} 9... b6 {[%clk 0:03:03.8]} 10.
dxc5 {[%clk 0:02:46.5]} 10... bxc5 {[%clk 0:03:04.3]} 11. Nf3 {[%clk 0:02:41.2]}
11... Ba6 {[%clk 0:03:03.8]} 12. Bxa6 {[%clk 0:02:38]} 12... Qxa6 {[%clk
0:03:01.3]} 13. Qe2 {[%clk 0:02:22.4]} 13... Qxe2+ {[%clk 0:02:59.1]} 14. Kxe2
{[%clk 0:02:19.6]} 14... Nc6 {[%clk 0:03:01]} 15. Rab1 {[%clk 0:02:19.1]} 15...
Nge7 {[%clk 0:02:58.5]} 16. Rb7 {[%clk 0:01:54.1]} 16... Ng6 {[%clk 0:02:45.2]}
17. Rc7 {[%clk 0:01:51.2]} 17... Ncxe5 {[%clk 0:02:42.4]} 18. Nxe5 {[%clk
0:01:53.1]} 18... Nxe5 {[%clk 0:02:43.8]} 19. Rb1 {[%clk 0:01:53.7]} 19... Kg8
{[%clk 0:01:02.4]} 20. a4 {[%clk 0:01:46.3]} 20... h6 {[%clk 0:00:56.8]} 21. f4
{[%clk 0:01:41.6]} 21... Nc4 {[%clk 0:00:56]} 22. Rbb7 {[%clk 0:01:39.6]} 22...
Nd6 {[%clk 0:00:57.1]} 23. Rxa7 {[%clk 0:01:36.8]} 23... Rxa7 {[%clk 0:00:57.7]}
24. Rxa7 {[%clk 0:01:38.7]} 24... Kh7 {[%clk 0:00:58.8]} 25. a5 {[%clk
0:01:38.3]} 25... Kg6 {[%clk 0:00:58.5]} 26. a6 {[%clk 0:01:36.1]} 26... Rb8
{[%clk 0:00:50.7]} 27. g4 {[%clk 0:01:31]} 27... Rb6 {[%clk 0:00:47.6]} 28. h4
{[%clk 0:01:29.1]} 28... h5 {[%clk 0:00:45.2]} 29. gxh5+ {[%clk 0:01:27.1]}
29... Kxh5 {[%clk 0:00:47.1]} 30. Ra8 {[%clk 0:01:25.7]} 30... Kg4 {[%clk
0:00:37.8]} 31. a7 {[%clk 0:01:23.6]} 31... Ra6 {[%clk 0:00:29.6]} 32. Rd8
{[%clk 0:01:21]} 32... Rxa7 {[%clk 0:00:30.2]} 33. Rxd6 {[%clk 0:01:20.3]} 33...
Kxh4 {[%clk 0:00:31.6]} 34. Be3 {[%clk 0:01:20.4]} 34... Rc7 {[%clk 0:00:32.2]}
35. f5 {[%clk 0:01:18.9]} 35... Kg4 {[%clk 0:00:25.5]} 36. fxe6 {[%clk
0:01:16.7]} 36... fxe6 {[%clk 0:00:27.4]} 37. Rxe6 {[%clk 0:01:18.4]} 37... Kf5
{[%clk 0:00:29]} 38. Rd6 {[%clk 0:01:15.2]} 38... Ke5 {[%clk 0:00:30]} 39. Rd8
{[%clk 0:01:11]} 39... Ke6 {[%clk 0:00:25]} 40. Kd3 {[%clk 0:01:08.4]} 40... Ke5
{[%clk 0:00:21.7]} 41. Rf8 {[%clk 0:01:03.7]} 41... c4+ {[%clk 0:00:22.9]} 42.
Kd2 {[%clk 0:01:02.2]} 42... Rb7 {[%clk 0:00:23.7]} 43. Bd4+ {[%clk 0:01:01.1]}
43... Ke6 {[%clk 0:00:22.7]} 44. Re8+ {[%clk 0:01:00.3]} 44... Kd6 {[%clk
0:00:22.1]} 45. Be5+ {[%clk 0:01:01.5]} 45... Kd7 {[%clk 0:00:21.8]} 46. Ra8
{[%clk 0:00:59]} 46... Ke6 {[%clk 0:00:22.1]} 47. Bd4 {[%clk 0:00:57.6]} 47...
g5 {[%clk 0:00:23.1]} 48. Rg8 {[%clk 0:00:55.6]} 48... Kf5 {[%clk 0:00:24.2]}
49. Be3 {[%clk 0:00:52.2]} 49... g4 {[%clk 0:00:21.3]} 50. Rg5+ {[%clk
0:00:52.7]} 50... Ke6 {[%clk 0:00:22.9]} 51. Rxg4 {[%clk 0:00:52.2]} 51... Rh7
{[%clk 0:00:24.3]} 52. Rg2 {[%clk 0:00:48.5]} 52... Rh3 {[%clk 0:00:24.3]} 53.
Ke2 {[%clk 0:00:47.2]} 53... Kf5 {[%clk 0:00:23.4]} 54. Rg5+ {[%clk 0:00:45.5]}
54... Ke4 {[%clk 0:00:22.3]} 55. Bd4 {[%clk 0:00:46.4]} 55... Rh2+ {[%clk
0:00:23.4]} 56. Kd1 {[%clk 0:00:42.5]} 56... Rh1+ {[%clk 0:00:22.9]} 57. Kd2
{[%clk 0:00:44.1]} 57... Rh2+ {[%clk 0:00:24.1]} 58. Kc1 {[%clk 0:00:43.9]}
58... Rh1+ {[%clk 0:00:13.3]} 59. Kb2 {[%clk 0:00:41.2]} 59... Rh7 {[%clk
0:00:14.7]} 60. Re5+ {[%clk 0:00:38.2]} 60... Kf3 {[%clk 0:00:16.3]} 61. Rxd5
{[%clk 0:00:39.6]} 61... Rb7+ {[%clk 0:00:17.8]} 62. Ka3 {[%clk 0:00:39]} 62...
Ke2 {[%clk 0:00:18.9]} 63. Ka4 {[%clk 0:00:37.6]} 63... Kd2 {[%clk 0:00:18.4]}
64. Rb5 {[%clk 0:00:38.6]} 64... Rc7 {[%clk 0:00:15.7]} 65. Kb4 {[%clk
0:00:36.9]} 65... Kxc2 {[%clk 0:00:16]} 66. Rc5 {[%clk 0:00:37.8]} 66... Rb7+
{[%clk 0:00:14.1]} 67. Kxc4 {[%clk 0:00:38.4]} 67... Ra7 {[%clk 0:00:15.7]} 68.
Kd5 {[%clk 0:00:39.7]} 68... Kd3 {[%clk 0:00:16.1]} 69. Rc8 {[%clk 0:00:39.5]}
69... Ra5+ {[%clk 0:00:16.4]} 70. Rc5 {[%clk 0:00:39.8]} 70... Ra7 {[%clk
0:00:16.5]} 71. Kc6 {[%clk 0:00:41.2]} 71... Ra6+ {[%clk 0:00:17.5]} 72. Kb5
{[%clk 0:00:41.8]} 72... Ra8 {[%clk 0:00:19.1]} 73. Be5 {[%clk 0:00:41.9]} 73...
Ke4 {[%clk 0:00:19]} 74. Bc7 {[%clk 0:00:42]} 74... Ra2 {[%clk 0:00:19.5]} 75.
Rc4+ {[%clk 0:00:43.1]} 75... Kd5 {[%clk 0:00:21.4]} 76. Rd4+ {[%clk 0:00:44.1]}
76... Ke6 {[%clk 0:00:22.7]} 77. Kc4 {[%clk 0:00:44.7]} 77... Ra4+ {[%clk
0:00:23.7]} 78. Kd3 {[%clk 0:00:45.6]} 78... Ra6 {[%clk 0:00:23]} 79. Bf4 {[%clk
0:00:45.9]} 79... Ra1 {[%clk 0:00:23.5]} 80. c4 {[%clk 0:00:46]} 80... Rd1+
{[%clk 0:00:23.4]} 81. Kc3 {[%clk 0:00:47.2]} 81... Rc1+ {[%clk 0:00:24.7]} 82.
Kb4 {[%clk 0:00:48.4]} 82... Rb1+ {[%clk 0:00:25.3]} 83. Kc5 {[%clk 0:00:49.6]}
83... Rh1 {[%clk 0:00:26.6]} 84. Kc6 {[%clk 0:00:48.7]} 84... Rh8 {[%clk
0:00:26]} 85. c5 {[%clk 0:00:48.8]} 85... Rc8+ {[%clk 0:00:26.5]} 86. Bc7 {[%clk
0:00:50.2]} 86... Ke7 {[%clk 0:00:27.2]} 87. Re4+ {[%clk 0:00:50.6]} 87... Kf6
{[%clk 0:00:28.8]} 88. Kd7 {[%clk 0:00:51.9]} 88... Ra8 {[%clk 0:00:29.8]} 89.
c6 {[%clk 0:00:52.9]} 89... Ra3 {[%clk 0:00:30.4]} 90. Bd6 {[%clk 0:00:53.2]}
90... Rc3 {[%clk 0:00:31.8]} 91. c7 {[%clk 0:00:54.1]} 91... Kf5 {[%clk
0:00:31.7]} 92. Re5+ {[%clk 0:00:54.6]} 92... Kf4 {[%clk 0:00:32]} 93. Rc5+
{[%clk 0:00:55.9]} 93... Ke4 {[%clk 0:00:33.3]} 94. Rxc3 {[%clk 0:00:56.4]} 1-0

[Event "*** Titled Tuesday Blitz"]
[Site "Chess.com"]
[Date "2019.01.01"]
[Round "1"]
[White "Koksik_13"]
[Black "2nd_life"]
[Result "0-1"]
[WhiteElo "2693"]
[BlackElo "2376"]
[TimeControl "180+2"]
[EndTime "13:12:04 PST"]
[Termination "2nd_life won on time"]

1. e4 {[%clk 0:02:58.9]} 1... e5 {[%clk 0:02:55.2]} 2. Nf3 {[%clk 0:02:59.5]}
2... Nc6 {[%clk 0:02:55.5]} 3. Nc3 {[%clk 0:02:59.8]} 3... Nf6 {[%clk
0:02:55.9]} 4. d4 {[%clk 0:02:59.9]} 4... exd4 {[%clk 0:02:52.2]} 5. Nxd4 {[%clk
0:03:00.6]} 5... Bb4 {[%clk 0:02:53.2]} 6. Nxc6 {[%clk 0:03:01.2]} 6... bxc6
{[%clk 0:02:54.3]} 7. Bd3 {[%clk 0:02:59.9]} 7... d5 {[%clk 0:02:55.4]} 8. exd5
{[%clk 0:03:00.9]} 8... O-O {[%clk 0:02:56.2]} 9. O-O {[%clk 0:03:02.1]} 9...
cxd5 {[%clk 0:02:57.1]} 10. h3 {[%clk 0:03:02.7]} 10... h6 {[%clk 0:02:48.4]}
11. Qf3 {[%clk 0:02:59.4]} 11... Be6 {[%clk 0:02:38.8]} 12. Bf4 {[%clk
0:02:55.2]} 12... Bd6 {[%clk 0:02:37.5]} 13. Ne2 {[%clk 0:02:55.8]} 13... Bxf4
{[%clk 0:02:37]} 14. Nxf4 {[%clk 0:02:56.4]} 14... Qd6 {[%clk 0:02:36]} 15. Rad1
{[%clk 0:02:56.9]} 15... c5 {[%clk 0:02:25.4]} 16. c4 {[%clk 0:02:51.9]} 16...
d4 {[%clk 0:02:25]} 17. Rfe1 {[%clk 0:02:52.1]} 17... Rfe8 {[%clk 0:02:25.4]}
18. b3 {[%clk 0:02:42.5]} 18... Bd7 {[%clk 0:02:20.5]} 19. Nh5 {[%clk
0:02:21.1]} 19... Nxh5 {[%clk 0:02:12.5]} 20. Qxh5 {[%clk 0:02:20.5]} 20...
Rxe1+ {[%clk 0:01:50.7]} 21. Rxe1 {[%clk 0:02:20.8]} 21... Re8 {[%clk
0:01:52.1]} 22. Rxe8+ {[%clk 0:02:21.2]} 22... Bxe8 {[%clk 0:01:53.4]} 23. Qg4
{[%clk 0:02:20.5]} 23... Qe6 {[%clk 0:01:38.7]} 24. Qf4 {[%clk 0:02:13.8]} 24...
Qe7 {[%clk 0:01:02.7]} 25. Kh2 {[%clk 0:01:57.7]} 25... g5 {[%clk 0:00:54.4]}
26. Qb8 {[%clk 0:01:40]} 26... Kg7 {[%clk 0:00:53]} 27. a3 {[%clk 0:01:34.2]}
27... a5 {[%clk 0:00:36.4]} 28. Qg3 {[%clk 0:01:09.6]} 28... Bc6 {[%clk
0:00:32.8]} 29. Qb8 {[%clk 0:00:49.4]} 29... a4 {[%clk 0:00:26]} 30. bxa4 {[%clk
0:00:46.9]} 30... Bxa4 {[%clk 0:00:27.2]} 31. Qa8 {[%clk 0:00:46.1]} 31... Qd6+
{[%clk 0:00:22.8]} 32. g3 {[%clk 0:00:46.7]} 32... Bc6 {[%clk 0:00:23.9]} 33.
Qa5 {[%clk 0:00:36.5]} 33... Qf6 {[%clk 0:00:23]} 34. Qe1 {[%clk 0:00:16.5]}
34... Kf8 {[%clk 0:00:22.3]} 35. Qe2 {[%clk 0:00:10.2]} 35... Bb7 {[%clk
0:00:18]} 36. Kg1 {[%clk 0:00:03.1]} 36... Qc6 {[%clk 0:00:18.1]} 37. f4 {[%clk
0:00:04.3]} 37... Qh1+ {[%clk 0:00:18.5]} 38. Kf2 {[%clk 0:00:05.3]} 38... Qh2+
{[%clk 0:00:19.9]} 39. Ke1 {[%clk 0:00:04.5]} 39... Qxg3+ {[%clk 0:00:21.2]} 40.
Kd2 {[%clk 0:00:05.6]} 40... Qxf4+ {[%clk 0:00:22.4]} 41. Kc2 {[%clk 0:00:06.2]}
41... Qe3 {[%clk 0:00:21]} 42. Qh5 {[%clk 0:00:05.8]} 42... Kg7 {[%clk
0:00:18.8]} 43. Qg4 {[%clk 0:00:06.3]} 43... Bc6 {[%clk 0:00:17.3]} 44. Qf5
{[%clk 0:00:05.7]} 44... Ba4+ {[%clk 0:00:16.9]} 45. Kb1 {[%clk 0:00:05.2]}
45... Qe1+ {[%clk 0:00:17.5]} 46. Ka2 {[%clk 0:00:03.4]} 46... Qd2+ {[%clk
0:00:17.7]} 47. Kb1 {[%clk 0:00:04.4]} 47... Qd1+ {[%clk 0:00:17.7]} 48. Ka2
{[%clk 0:00:05.3]} 48... Qb3+ {[%clk 0:00:18.4]} 49. Ka1 {[%clk 0:00:06.2]}
49... Qxa3+ {[%clk 0:00:19.6]} 50. Kb1 {[%clk 0:00:07.8]} 50... Qb3+ {[%clk
0:00:20.8]} 51. Ka1 {[%clk 0:00:09.2]} 51... Qd1+ {[%clk 0:00:21.6]} 52. Kb2
{[%clk 0:00:09.6]} 52... Qd2+ {[%clk 0:00:20.2]} 53. Ka1 {[%clk 0:00:10.3]}
53... Qe1+ {[%clk 0:00:15.5]} 54. Kb2 {[%clk 0:00:11.1]} 54... Qe6 {[%clk
0:00:14.6]} 55. Qxc5 {[%clk 0:00:09.2]} 55... Qe3 {[%clk 0:00:08]} 56. Qf5
{[%clk 0:00:09.4]} 56... Qd2+ {[%clk 0:00:07.2]} 57. Ka3 {[%clk 0:00:09.5]}
57... Be8 {[%clk 0:00:08.2]} 58. Qe5+ {[%clk 0:00:07.6]} 58... Kf8 {[%clk
0:00:07.1]} 59. Qd6+ {[%clk 0:00:08.7]} 59... Kg8 {[%clk 0:00:07.6]} 60. Qxd4
{[%clk 0:00:09.8]} 60... Qa5+ {[%clk 0:00:07.1]} 61. Kb2 {[%clk 0:00:10.1]}
61... Qc7 {[%clk 0:00:06.2]} 62. c5 {[%clk 0:00:10]} 62... Qb7+ {[%clk
0:00:04.5]} 63. Kc3 {[%clk 0:00:10.8]} 63... Qd7 {[%clk 0:00:05.4]} 64. Qe4
{[%clk 0:00:09.1]} 64... Qe6 {[%clk 0:00:04.1]} 65. Qa8 {[%clk 0:00:06.3]} 65...
Kg7 {[%clk 0:00:04.7]} 66. Qd8 {[%clk 0:00:04.5]} 66... Qe5+ {[%clk 0:00:04.4]}
67. Kb4 {[%clk 0:00:05.6]} 67... Bc6 {[%clk 0:00:05.6]} 68. Bc4 {[%clk
0:00:06.1]} 68... Qb2+ {[%clk 0:00:06.1]} 69. Bb3 {[%clk 0:00:07.5]} 69... Qf2
{[%clk 0:00:05.7]} 70. Qd6 {[%clk 0:00:07.3]} 70... Qf4+ {[%clk 0:00:06.5]} 71.
Ka5 {[%clk 0:00:06.8]} 71... Qxd6 {[%clk 0:00:06.1]} 72. cxd6 {[%clk 0:00:07.8]}
72... Bd7 {[%clk 0:00:07.5]} 73. Kb6 {[%clk 0:00:05.6]} 73... Kf8 {[%clk
0:00:07.3]} 74. Kc7 {[%clk 0:00:06.4]} 74... Bxh3 {[%clk 0:00:08.2]} 75. Ba4
{[%clk 0:00:05.5]} 75... Bf5 {[%clk 0:00:04.6]} 76. Bd7 {[%clk 0:00:06.1]} 76...
Bc2 {[%clk 0:00:05.6]} 77. Bc6 {[%clk 0:00:04.3]} 77... Bf5 {[%clk 0:00:06]} 78.
Bd7 {[%clk 0:00:05.4]} 78... Bd3 {[%clk 0:00:06.8]} 79. Bc8 {[%clk 0:00:05.4]}
79... Bb5 {[%clk 0:00:06.9]} 80. Bd7 {[%clk 0:00:05.7]} 80... Bd3 {[%clk
0:00:07.4]} 81. Bb5 {[%clk 0:00:06.2]} 81... Bxb5 {[%clk 0:00:07.9]} 0-1

[Event "*** Titled Tuesday Blitz"]
[Site "Chess.com"]
[Date "2019.01.01"]
[Round "2"]
[White "Fluffey"]
[Black "patrisiii123"]
[Result "1-0"]
[WhiteElo "2466"]
[BlackElo "2261"]
[TimeControl "180+2"]
[EndTime "13:15:54 PST"]
[Termination "Fluffey won by checkmate"]

1. Nf3 {[%clk 0:03:01.9]} 1... Nf6 {[%clk 0:03:00.7]} 2. g3 {[%clk 0:03:03.4]}
2... c5 {[%clk 0:03:01.2]} 3. Bg2 {[%clk 0:03:04.8]} 3... Nc6 {[%clk 0:03:03.1]}
4. O-O {[%clk 0:03:03.8]} 4... d6 {[%clk 0:03:02.6]} 5. Re1 {[%clk 0:03:01.4]}
5... g6 {[%clk 0:03:02.3]} 6. e4 {[%clk 0:03:02.1]} 6... Bg7 {[%clk 0:03:02.3]}
7. c3 {[%clk 0:03:02.3]} 7... e5 {[%clk 0:03:02.3]} 8. d4 {[%clk 0:03:01.8]}
8... cxd4 {[%clk 0:02:59.8]} 9. cxd4 {[%clk 0:03:03.7]} 9... Bg4 {[%clk
0:02:56.5]} 10. dxe5 {[%clk 0:03:01.9]} 10... dxe5 {[%clk 0:02:57.5]} 11. Qb3
{[%clk 0:02:53.1]} 11... Qb6 {[%clk 0:02:48.2]} 12. Qxb6 {[%clk 0:02:47.3]}
12... axb6 {[%clk 0:02:50.1]} 13. Nc3 {[%clk 0:02:48.5]} 13... O-O-O {[%clk
0:02:43.6]} 14. Be3 {[%clk 0:02:46.9]} 14... Kc7 {[%clk 0:02:37.6]} 15. Nb5+
{[%clk 0:02:46.4]} 15... Kb8 {[%clk 0:02:38.1]} 16. Bxb6 {[%clk 0:02:45.8]}
16... Rd3 {[%clk 0:02:37.7]} 17. Nxe5 {[%clk 0:02:40.5]} 17... Nxe5 {[%clk
0:02:30.8]} 18. Bc7+ {[%clk 0:02:41.3]} 18... Ka8 {[%clk 0:02:31.8]} 19. Bxe5
{[%clk 0:02:42.1]} 19... Rd2 {[%clk 0:02:23.3]} 20. Re3 {[%clk 0:02:36.9]} 20...
Rhd8 {[%clk 0:02:20.1]} 21. Ra3# {[%clk 0:02:37.4]} 1-0

[Event "*** Titled Tuesday Blitz"]
[Site "Chess.com"]
[Date "2019.01.01"]
[Round "2"]
[White "ama18"]
[Black "saraswathii"]
[Result "1-0"]
[WhiteElo "2441"]
[BlackElo "2252"]
[TimeControl "180+2"]
[EndTime "13:17:23 PST"]
[Termination "ama18 won on time"]

1. e4 {[%clk 0:03:01.9]} 1... c5 {[%clk 0:01:17.5]} 2. Nf3 {[%clk 0:03:00.4]}
2... e6 {[%clk 0:01:15.5]} 3. d4 {[%clk 0:03:01.4]} 3... cxd4 {[%clk 0:01:15.1]}
4. Nxd4 {[%clk 0:03:03.3]} 4... Nf6 {[%clk 0:01:14.1]} 5. Nc3 {[%clk 0:03:03.8]}
5... Nc6 {[%clk 0:01:15]} 6. g3 {[%clk 0:03:02.3]} 6... Bb4 {[%clk 0:01:13.6]}
7. Bg2 {[%clk 0:03:02.9]} 7... d5 {[%clk 0:01:12.6]} 8. O-O {[%clk 0:03:03]}
8... O-O {[%clk 0:01:05.5]} 9. exd5 {[%clk 0:03:01.7]} 9... Nxd5 {[%clk
0:01:01.6]} 10. Nxd5 {[%clk 0:03:01.7]} 10... exd5 {[%clk 0:01:00.1]} 11. c3
{[%clk 0:03:03]} 11... Be7 {[%clk 0:00:56]} 12. Bf4 {[%clk 0:03:01.4]} 12... Bf6
{[%clk 0:00:35.2]} 13. Nb5 {[%clk 0:03:01]} 13... a6 {[%clk 0:00:34.3]} 14. Nc7
{[%clk 0:03:01.5]} 1-0

[Event "*** Titled Tuesday Blitz"]
[Site "Chess.com"]
[Date "2019.01.01"]
[Round "2"]
[White "VitaliyBernadskiy"]
[Black "alpasya2009"]
[Result "1-0"]
[WhiteElo "2745"]
[BlackElo "2662"]
[TimeControl "180+2"]
[EndTime "13:17:27 PST"]
[Termination "VitaliyBernadskiy won by resignation"]

1. e4 {[%clk 0:02:56.4]} 1... c5 {[%clk 0:03:01]} 2. Nf3 {[%clk 0:02:57.2]} 2...
d6 {[%clk 0:03:01]} 3. Bb5+ {[%clk 0:02:53.2]} 3... Nd7 {[%clk 0:03:00.6]} 4.
O-O {[%clk 0:02:51.3]} 4... a6 {[%clk 0:03:00.1]} 5. Bd3 {[%clk 0:02:51]} 5...
Ngf6 {[%clk 0:02:59.1]} 6. c3 {[%clk 0:02:51.5]} 6... e6 {[%clk 0:02:59.3]} 7.
Bc2 {[%clk 0:02:51.2]} 7... b5 {[%clk 0:02:59.1]} 8. d4 {[%clk 0:02:52.3]} 8...
Bb7 {[%clk 0:02:56.2]} 9. Re1 {[%clk 0:02:51.4]} 9... Be7 {[%clk 0:02:56.2]} 10.
Nbd2 {[%clk 0:02:52.1]} 10... O-O {[%clk 0:02:55.9]} 11. e5 {[%clk 0:02:47.7]}
11... Nd5 {[%clk 0:02:54.9]} 12. Ne4 {[%clk 0:02:44.4]} 12... dxe5 {[%clk
0:02:46.4]} 13. dxe5 {[%clk 0:02:46.3]} 13... Qc7 {[%clk 0:02:43.8]} 14. Bg5
{[%clk 0:02:36.1]} 14... Bxg5 {[%clk 0:02:14.6]} 15. Nexg5 {[%clk 0:02:22.1]}
15... h6 {[%clk 0:02:11.1]} 16. Qd3 {[%clk 0:02:22.2]} 16... g6 {[%clk
0:01:53.5]} 17. Nxe6 {[%clk 0:02:22.6]} 17... Qc6 {[%clk 0:01:52.2]} 18. Nxf8
{[%clk 0:02:17.3]} 18... Rxf8 {[%clk 0:01:54.1]} 19. e6 {[%clk 0:02:16]} 19...
Nf4 {[%clk 0:01:49.6]} 20. Qxd7 {[%clk 0:02:02.7]} 1-0

[Event "*** Titled Tuesday Blitz"]
[Site "Chess.com"]
[Date "2019.01.01"]
[Round "2"]
[White "tomozupan"]
[Black "TBergh98"]
[Result "0-1"]
[WhiteElo "2205"]
[BlackElo "2263"]
[TimeControl "180+2"]
[EndTime "13:17:32 PST"]
[Termination "TBergh98 won by resignation"]

1. d4 {[%clk 0:03:01.9]} 1... Nf6 {[%clk 0:03:00]} 2. Bg5 {[%clk 0:03:01.5]}
2... e6 {[%clk 0:03:00.3]} 3. e4 {[%clk 0:03:01.9]} 3... Be7 {[%clk 0:03:01.7]}
4. e5 {[%clk 0:03:01.5]} 4... Nd5 {[%clk 0:03:03.2]} 5. Bxe7 {[%clk 0:03:02]}
5... Qxe7 {[%clk 0:03:05.1]} 6. c4 {[%clk 0:03:01.6]} 6... Qb4+ {[%clk
0:03:06.2]} 7. Nd2 {[%clk 0:02:51]} 7... Nb6 {[%clk 0:03:07]} 8. f4 {[%clk
0:02:42.4]} 8... Qxb2 {[%clk 0:03:01]} 9. Ngf3 {[%clk 0:02:42.5]} 9... Qc3
{[%clk 0:02:53.4]} 10. Be2 {[%clk 0:02:08.5]} 10... Qe3 {[%clk 0:02:50.8]} 11.
g3 {[%clk 0:01:37.3]} 11... Nc6 {[%clk 0:02:45]} 12. d5 {[%clk 0:01:11.6]} 12...
Nd4 {[%clk 0:02:36.1]} 13. Nxd4 {[%clk 0:01:11.1]} 13... Qxd4 {[%clk 0:02:37]}
14. dxe6 {[%clk 0:01:03.7]} 14... dxe6 {[%clk 0:02:37.3]} 15. Rc1 {[%clk
0:01:03.8]} 15... Bd7 {[%clk 0:02:34.6]} 16. Qb3 {[%clk 0:00:54.6]} 16... Ba4
{[%clk 0:02:21.5]} 17. Qf3 {[%clk 0:00:51.6]} 17... Bc6 {[%clk 0:02:22.1]} 0-1

[Event "*** Titled Tuesday Blitz"]
[Site "Chess.com"]
[Date "2019.01.01"]
[Round "2"]
[White "Orest_Vovk"]
[Black "Vrolijk"]
[Result "0-1"]
[WhiteElo "2357"]
[BlackElo "2721"]
[TimeControl "180+2"]
[EndTime "13:17:43 PST"]
[Termination "Vrolijk won by resignation"]

1. e4 {[%clk 0:03:01.9]} 1... c5 {[%clk 0:03:00.1]} 2. a3 {[%clk 0:03:02.3]}
2... b6 {[%clk 0:02:59]} 3. b4 {[%clk 0:03:01.5]} 3... Bb7 {[%clk 0:03:00.7]} 4.
bxc5 {[%clk 0:03:01.9]} 4... Bxe4 {[%clk 0:03:01.8]} 5. Nc3 {[%clk 0:02:57.6]}
5... Bb7 {[%clk 0:02:58.2]} 6. cxb6 {[%clk 0:02:58.5]} 6... axb6 {[%clk
0:03:00.1]} 7. Bc4 {[%clk 0:02:56.4]} 7... Bxg2 {[%clk 0:02:45.6]} 8. Bd5 {[%clk
0:02:56.3]} 8... Bxd5 {[%clk 0:02:45.9]} 9. Nxd5 {[%clk 0:02:56.9]} 9... e6
{[%clk 0:02:47.6]} 10. Nc3 {[%clk 0:02:54.8]} 10... Nf6 {[%clk 0:02:49]} 11. Qf3
{[%clk 0:02:51.8]} 11... Nc6 {[%clk 0:02:50.2]} 12. Nge2 {[%clk 0:02:50.8]}
12... Ne5 {[%clk 0:02:43.5]} 13. Qe3 {[%clk 0:02:45.4]} 13... Ng6 {[%clk
0:02:41.6]} 14. Rb1 {[%clk 0:02:42.7]} 14... Bc5 {[%clk 0:02:42.5]} 15. d4
{[%clk 0:02:40.4]} 15... Bxa3 {[%clk 0:02:43.2]} 16. Bxa3 {[%clk 0:02:40.3]}
16... Rxa3 {[%clk 0:02:45.1]} 17. h4 {[%clk 0:02:34.6]} 17... h5 {[%clk
0:02:42.2]} 18. Rg1 {[%clk 0:02:32.9]} 18... Nd5 {[%clk 0:02:39.3]} 19. Qd2
{[%clk 0:02:32.9]} 19... Nxc3 {[%clk 0:02:39.1]} 20. Nxc3 {[%clk 0:02:34]} 20...
Qxh4 {[%clk 0:02:40.6]} 21. Rxb6 {[%clk 0:02:30.3]} 21... O-O {[%clk 0:02:40.7]}
22. Nd1 {[%clk 0:02:21.8]} 22... Qe4+ {[%clk 0:02:36.1]} 23. Kf1 {[%clk
0:02:20.1]} 23... h4 {[%clk 0:02:32.4]} 24. Rb5 {[%clk 0:02:05.8]} 24... Ra1
{[%clk 0:02:27.4]} 25. Rb3 {[%clk 0:01:45.9]} 25... Rc8 {[%clk 0:02:26.3]} 26.
c3 {[%clk 0:01:34.9]} 26... h3 {[%clk 0:02:19.7]} 27. Qe2 {[%clk 0:01:35.9]}
27... Rxd1+ {[%clk 0:02:15.2]} 28. Qxd1 {[%clk 0:01:36.4]} 28... h2 {[%clk
0:02:17]} 0-1

[Event "*** Titled Tuesday Blitz"]
[Site "Chess.com"]
[Date "2019.01.01"]
[Round "2"]
[White "penguingm1"]
[Black "enriquetejedor"]
[Result "1-0"]
[WhiteElo "2817"]
[BlackElo "2558"]
[TimeControl "180+2"]
[EndTime "13:18:14 PST"]
[Termination "penguingm1 won by resignation"]

1. d4 {[%clk 0:03:01.9]} 1... Nf6 {[%clk 0:02:57.7]} 2. c4 {[%clk 0:03:01.8]}
2... e6 {[%clk 0:02:58.8]} 3. Nc3 {[%clk 0:03:00.8]} 3... d5 {[%clk 0:03:00.7]}
4. cxd5 {[%clk 0:03:01]} 4... exd5 {[%clk 0:03:02.6]} 5. Bg5 {[%clk 0:03:01.9]}
5... c6 {[%clk 0:03:03.4]} 6. e3 {[%clk 0:03:03.1]} 6... Be7 {[%clk 0:03:04.6]}
7. Bd3 {[%clk 0:03:04.1]} 7... Nbd7 {[%clk 0:03:06.1]} 8. Qc2 {[%clk 0:03:05.3]}
8... Nf8 {[%clk 0:03:07.7]} 9. Nge2 {[%clk 0:03:05.2]} 9... Ne6 {[%clk
0:03:09.2]} 10. Bh4 {[%clk 0:03:06.5]} 10... g6 {[%clk 0:03:10.6]} 11. f3 {[%clk
0:03:07.4]} 11... O-O {[%clk 0:03:11.9]} 12. O-O {[%clk 0:03:08.5]} 12... Ng7
{[%clk 0:03:13]} 13. Rad1 {[%clk 0:03:09.1]} 13... Be6 {[%clk 0:03:11.2]} 14. h3
{[%clk 0:03:08.9]} 14... Rc8 {[%clk 0:03:08.6]} 15. a3 {[%clk 0:02:55.9]} 15...
c5 {[%clk 0:03:04.9]} 16. dxc5 {[%clk 0:02:53.1]} 16... Bxc5 {[%clk 0:03:05.9]}
17. Nd4 {[%clk 0:02:50.9]} 17... Nge8 {[%clk 0:02:57.1]} 18. Qf2 {[%clk
0:02:43.2]} 18... Qb6 {[%clk 0:02:54.9]} 19. Na4 {[%clk 0:02:43.2]} 19... Qd6
{[%clk 0:02:41.7]} 20. Nxc5 {[%clk 0:02:40.6]} 20... Rxc5 {[%clk 0:02:43.6]} 21.
Bg5 {[%clk 0:02:37.6]} 21... Qe5 {[%clk 0:02:38.6]} 22. f4 {[%clk 0:02:20.4]}
22... Qc7 {[%clk 0:02:35.2]} 23. f5 {[%clk 0:02:21.6]} 23... Ne4 {[%clk
0:02:28]} 24. Bxe4 {[%clk 0:02:11.9]} 24... dxe4 {[%clk 0:02:29.9]} 25. Bf4
{[%clk 0:02:12.8]} 25... Qe7 {[%clk 0:02:22.9]} 26. fxe6 {[%clk 0:02:02.4]}
26... fxe6 {[%clk 0:02:24.8]} 27. Qg3 {[%clk 0:01:58.2]} 27... e5 {[%clk
0:02:10.1]} 28. Bg5 {[%clk 0:01:44.1]} 28... Rxf1+ {[%clk 0:02:12]} 29. Rxf1
{[%clk 0:01:45.3]} 29... Qd6 {[%clk 0:02:08.5]} 30. Bh6 {[%clk 0:01:28.1]} 30...
Rc7 {[%clk 0:01:57.4]} 31. Qxe5 {[%clk 0:01:25.1]} 1-0